[Event "Vienna Championship 2022"]
[Site "Vienna"]
[Date "2022.09.18"]
[Round "2.5"]
[White "Baumegger, Siegfried"]
[Black "Vitouch, Anatol"]
[Result "1-0"]
[ECO "A09"]
[WhiteElo "2447"]
[BlackElo "2252"]
[Annotator "ChessBase"]
[PlyCount "109"]
[EventDate "2022.09.17"]
[EventType "tourn"]
[EventCountry "AUT"]
[SourceTitle "playchess.com"]
[Source "ChessBase"]
[SourceQuality "1"]
[TimeControl "5400+30"]

1. Nf3 {[%emt 0:00:09]} d5 {[%emt 0:00:08]} 2. c4 {[%emt 0:01:04]} d4 {[%emt 0:01:30]} 3. b4 {[%emt 0:00:52]} f6 {[%emt 0:00:06]} 4. d3 {[%emt 0:02:17]} e5 {[%emt 0:01:20]} 5. a3 {[%emt 0:00:21]} a5 {[%emt 0:01:33]} 6. b5 {[%emt 0:00:22]} Bc5 {[%emt 0:02:09]} 7. g3 {[%emt 0:01:38]} Ne7 {[%emt 0:01:27]} 8. Bg2 {[%emt 0:00:12]} O-O {[%emt 0:00:14]} 9. O-O {[%emt 0:00:23]} c6 {[%emt 0:16:09]} 10. a4 {[%emt 0:03:56]} Bg4 {[%emt 0:03:10]} 11. Nbd2 {[%emt 0:01:37]} Bb4 {[%emt 0:12:17]} 12. Nb3 {[%emt 0:11:48]} Nd7 {[%emt 0:03:16]} 13. h3 {[%emt 0:09:20]} Be6 {[%emt 0:00:44]} 14. Bd2 {[%emt 0:03:57]} Bxd2 {[%emt 0:11:42]} 15. Nfxd2 {[%emt 0:00:51]} Qc7 {[%emt 0:03:55]} 16. Ne4 {[%emt 0:02:36]} c5 {[%emt 0:00:33]} 17. e3 {[%emt 0:00:23]} dxe3 {[%emt 0:05:34]} 18. fxe3 {[%emt 0:01:35]} Rad8 {[%emt 0:02:17]} 19. Qe2 {[%emt 0:04:57]} b6 {[%emt 0:03:27]} 20. Nbd2 {[%emt 0:01:57]} Nf5 {[%emt 0:04:02]} 21. Rad1 {[%emt 0:03:44]} Rfe8 {[%emt 0:01:48]} 22. g4 {[%emt 0:08:13]} Nh4 {[%emt 0:00:50]} 23. Nc3 {[%emt 0:02:16]} Nxg2 {[%emt 0:02:33]} 24. Qxg2 {[%emt 0:00:16]} Kh8 {[%emt 0:06:44]} 25. Nde4 {[%emt 0:08:18]} Nf8 {[%emt 0:01:27]} 26. Ng3 {[%emt 0:12:04]} Ng6 {[%emt 0:02:04]} 27. Qe4 {[%emt 0:06:27]} Qd7 {[%emt 0:01:09]} 28. Rf2 {[%emt 0:01:32]} Ne7 {[%emt 0:01:35]} 29. Kh2 {[%emt 0:03:12]} Nc8 {[%emt 0:00:35]} 30. Qg2 {[%emt 0:00:23]} Qf7 {[%emt 0:02:28]} 31. e4 {[%emt 0:01:00]} Qg6 {[%emt 0:04:52]} 32. Nd5 {[%emt 0:00:35]} Bxd5 {[%emt 0:00:15]} 33. exd5 {[%emt 0:00:18]} Nd6 {[%emt 0:00:13]} 34. Ne4 {[%emt 0:00:58]} Qh6 {[%emt 0:01:19]} 35. Re1 {[%emt 0:02:16]} Qh4 {[%emt 0:00:49]} 36. Nxd6 {[%emt 0:01:01]} Rxd6 {[%emt 0:00:05]} 37. Re4 {[%emt 0:00:59]} Qg5 {[%emt 0:00:24]} 38. Qg3 {[%emt 0:01:07]} h6 {[%emt 0:01:20]} 39. h4 {[%emt 0:00:14]} Qg6 {[%emt 0:00:47]} 40. Rf5 {[%emt 0:00:22]} Kg8 {[%emt 0:00:27]} 41. Qf3 {[%emt 0:00:23]} Rdd8 {[%emt 0:00:39]} 42. Re2 {[%emt 0:00:13]} Qf7 {[%emt 0:01:21]} 43. g5 {[%emt 0:00:57]} hxg5 {[%emt 0:00:07]} 44. hxg5 {[%emt 0:00:07]} Rd6 {[%emt 0:00:21]} 45. Rf2 {[%emt 0:02:36]} Rf8 {[%emt 0:00:20]} 46. Rg2 {[%emt 0:00:22]} g6 {[%emt 0:01:44]} 47. Rxf6 {[%emt 0:02:10]} Rxf6 {[%emt 0:00:03]} 48. gxf6 {[%emt 0:00:04]} Qxf6 {[%emt 0:00:09]} 49. Qxf6 {[%emt 0:00:09]} Rxf6 {[%emt 0:00:04]} 50. Rg5 {[%emt 0:00:06]} Rf3 {[%emt 0:00:20]} 51. Rxg6+ {[%emt 0:00:15]} Kf7 {[%emt 0:00:07]} 52. Rxb6 {[%emt 0:00:05]} Rxd3 {[%emt 0:00:06]} 53. Rc6 {[%emt 0:00:16]} Ra3 {[%emt 0:00:30]} 54. Rxc5 {[%emt 0:00:05]} Rxa4 {[%emt 0:00:04]} 55. b6 {[%emt 0:00:27]} 1-0

[Event "Vienna Championship 2022"]
[Site "Vienna"]
[Date "2022.09.19"]
[Round "3.1"]
[White "Vitouch, Anatol"]
[Black "Schwabeneder, Florian"]
[Result "0-1"]
[ECO "E06"]
[WhiteElo "2252"]
[BlackElo "2417"]
[Annotator "TA"]
[PlyCount "110"]
[EventDate "2022.09.17"]
[EventType "tourn"]
[EventCountry "AUT"]
[SourceTitle "playchess.com"]
[Source "ChessBase"]
[SourceQuality "1"]
[TimeControl "5400+30"]

{[%evp 17,110,16,15,8,43,30,37,29,39,5,10,0,17,0,0,0,0,0,0,0,0,-6,0,0,0,-5,0,-10,-8,-8,0,0,-1,-9,-7,-20,0,-38,-30,-52,-45,-71,-71,-67,-65,-55,0,-71,-71,-71,-71,-81,0,-104,-100,-89,-79,-236,-239,-256,-183,-407,-387,-387,-276,-247,-271,-254,-234,-304,-289,-280,-289,-266,-166,-245,-247,-233,-200,-397,-389,-562,-573,-518,-497,-1046,-1022,-846,-814,-4829,-1342,-29975,-29976,-29980,-29971]} 1. d4 {[%emt 0:00:03]} d5 {[%emt 0:00:46]} 2. Nf3 {[%emt 0:00:06]} Nf6 {[%emt 0:01:41]} 3. g3 {[%emt 0:00:06]} e6 {[%emt 0:03:01]} 4. Bg2 {[%emt 0:00:10]} Be7 {[%emt 0:01:21]} 5. O-O {[%emt 0:00:07]} O-O {[%emt 0:00:25]} 6. c4 {[%emt 0:00:13]} c6 {[%emt 0:01:32]} 7. Qc2 {[%emt 0:00:16]} b6 {[%emt 0:00:52]} 8. Nbd2 {[%emt 0:00:09]} Bb7 {[%emt 0:01:48]} 9. e4 {[%emt 0:00:17]} Na6 {[%emt 0:02:13]} 10. a3 {[%emt 0:00:16] CPLX 2.2 The main line 10.a3 scores better than 10.e5. E06: Closed Catalan: Early deviations.} Rc8 {[%emt 0:06:09] CPLX 2.2 35 (c6-c5) (=18)} (10... c5 $5 {[%cal Rd5e4]}) 11. e5 {[%emt 0:04:32] CPLX 2.2 13 (b2-b4) (=7)} (11. b4 {seems wilder.} dxc4 12. Nxc4 c5 13. e5) 11... Nd7 {[%emt 0:00:46] CPLX 2.4 7 (Nf6-e8) (=14)} 12. cxd5 {[%emt 0:03:54] BESTDEEP. White is slightly better.} cxd5 {[%emt 0:01:01] RECAPT} 13. Qa4 {[%emt 0:00:53] CPLX 2.8 34 (Qc2-b1) (=12)} Nab8 {[%emt 0:11:54] BESTDEEP} 14. Re1 {[%emt 0:02:51] BESTDEEP} (14. Qxa7 $2 Bc6 15. Nb1 Rc7 16. Qxc7 Qxc7 $19) 14... Qc7 {[%emt 0:07:48] [#] CPLX 2.3 17 (Bb7-a6) (=10)} 15. Nf1 $146 {[%emt 0:00:48] CPLX 2.4 17 (b2-b4) (=11)} ({Predecessor:} 15. Bf1 f6 16. exf6 Rxf6 17. Bh3 Qc6 18. Qxc6 Rxc6 19. Kg2 a5 20. Nf1 h6 21. Ne3 {1-0 (39) Yashmetov,M (2330)-Anisimov,Y (1992) Moscow 2020}) 15... Qc6 {[%emt 0:04:14] CPLX 2.4 0 (Qc7-c2) (=8)} 16. Qd1 {[%emt 0:05:38] BESTDEEP} ({Don't go for} 16. Qxa7 $2 Rc7 17. Ne3 Ba6 18. Qxc7 Qxc7 $19) 16... Qc2 {[%emt 0:02:22] CPLX 2.2} 17. Ne3 {[%emt 0:00:42] CPLX 2.8 0 (Qd1xc2) (=8)} Qxd1 {[%emt 0:00:17] CPLX 3.0} 18. Rxd1 {[%emt 0:00:05] RECAPT} Ba6 {[%emt 0:05:11] BESTDEEP} 19. Bd2 {[%emt 0:00:43] CPLX 2.0 6 (b2-b3) (=7)} Rc7 {[%emt 0:01:20] CPLX 2.0 6 (Nb8-c6) (=6)} 20. Rdc1 {[%emt 0:17:34] CPLX 2.0 0 (Bd2-b4) (=6)} Rfc8 {[%emt 0:00:43] CPLX 2.2} 21. Rxc7 {[%emt 0:00:08] CPLX 2.1} Rxc7 {[%emt 0:00:07] RECAPT} 22. Bf1 {[%emt 0:16:35] CPLX 2.0 10 (Nf3-e1) (=6)} Bxf1 {[%emt 0:01:40] CPLX 2.1} 23. Kxf1 {[%emt 0:00:05] RECAPT} f6 {[%emt 0:03:42] CPLX 2.0 8 (b6-b5) (=5)} 24. exf6 {[%emt 0:00:48] CPLX 2.0} gxf6 {[%emt 0:00:48] RECAPT} 25. Re1 {[%emt 0:02:04][%cal Oe3d5] [#] Hoping for Nxd5! CPLX 2.0 8 (a3-a4) (=6)} Kf7 {[%emt 0:04:31] BESTDEEP} 26. Ke2 {[%emt 0:04:39] CPLX 2.0 13 (g3-g4) (=6)} Bd6 {[%emt 0:02:57] CPLX 2.0 20 (Nb8-c6) (=5)} 27. Kd3 {[%emt 0:01:16] CPLX 2.0 38 (h2-h4) (=8)} Nc6 {[%emt 0:00:54] CPLX 2.5} 28. Rc1 {[%emt 0:03:39] CPLX 2.2 22 (a3-a4) (=8)} b5 {[%emt 0:03:39] BESTDEEP} 29. Ne1 {[%emt 0:18:14] CPLX 2.5 26 (Rc1-a1) (=9)} Nb6 {[%emt 0:02:49] BESTDEEP} 30. f4 {[%emt 0:00:04] DEEPSTRONG} Nc4 {[%emt 0:02:00] CPLX 2.8} 31. Rc2 {[%emt 0:01:10] BESTDEEP} Ne7 {[%emt 0:03:58] CPLX 3.2 55 (Rc7-d7) (=6)} (31... Rd7 $15) 32. Nf3 {[%emt 0:03:52] RELBLUND 71 (b2-b3) (=11)} (32. b3 $1 $11 {remains equal.}) 32... a5 $17 {[%emt 0:07:00] BESTDEEP} 33. Bc1 {[%emt 0:01:09] CPLX 3.3 0 (Kd3-e2) (=11)} a4 {[%emt 0:01:36] CPLX 3.2 0 (Rc7-b7) (=6)} 34. Nd1 {[%emt 0:00:37] CPLX 3.3 10 (Bc1-d2) (=11)} b4 {[%emt 0:05:00] CPLX 3.1 81 (Rc7-b7) (=9)} (34... Rb7 $17) 35. axb4 {[%emt 0:00:45] RELBLUND 104 (Nf3-d2) (=14)} (35. Nd2 $1 $11) 35... Nc6 $36 {[%emt 0:02:47][%mdl 2048] Black is really pushing. DEEPSTRONG=>BLUNDERREACT} ({Don't take} 35... Bxb4 36. Ne3 $14) 36. Bd2 {[%emt 0:01:39] EASY} Bxb4 {[%emt 0:01:00] Black has more active pieces. The white rooks are badly placed. EASY} 37. Nc3 $2 {[%emt 0:04:10] Loses the game. MISSDEEP-Bd2-c3 157 (Bd2-c3) (=19)} (37. Bc3 $17 {might work better.}) 37... Ba5 $19 {[%emt 0:03:27] [#] ...Nb4+ is the strong threat. BESTDEEP} 38. Na2 {[%emt 0:01:26] Prevents Nb4+. CPLX 3.1 17 (Rc2-c1) (=19)} Rb7 {[%emt 0:01:15] CPLX 3.3 73 (e6-e5) (=10)} 39. Bc1 {[%emt 0:01:46] MISSDEEP-Bd2-c3 224 (Bd2-c3) (=26)} (39. Bc3) 39... Rb3+ {[%emt 0:00:44] EASY} 40. Ke2 {[%emt 0:00:32] DEEPSTRONG} Rxf3 {[%emt 0:01:14] CPLX 3.3 111 (Ba5-b6) (=13)} 41. Rxc4 {[%emt 0:00:05] EASY} dxc4 {[%emt 0:00:07] RECAPT} 42. Kxf3 {[%emt 0:00:04] EASY} Nxd4+ {[%emt 0:00:09][%mdl 4096] Endgame KBN-KBN. EASY} 43. Ke4 {[%emt 0:00:12] CPLX 2.0 70 (Kf3-f2) (=25)} Nb3 {[%emt 0:01:46] Strongly threatening ...f5+. CPLX 2.3} 44. Be3 {[%emt 0:00:58] CPLX 2.1} f5+ {[%emt 0:01:24] CPLX 2.1} 45. Kf3 {[%emt 0:00:08] EASY} Nd2+ {[%emt 0:00:37] CPLX 2.0 100 (Kf7-e7) (=14)} 46. Ke2 {[%emt 0:01:18] CPLX 2.0 79 (Be3xd2) (=25)} (46. Bxd2 {is a better defense.} Bxd2 47. Ke2) 46... Ne4 {[%emt 0:00:06] CPLX 2.1} 47. Bd4 {[%emt 0:00:40] CPLX 2.0 0 (Be3-a7) (=24)} Ke7 {[%emt 0:00:11] CPLX 2.0} 48. Kf3 $2 {[%emt 0:00:36] CPLX 2.0 197 (Bd4-e5) (=29)} (48. Be5) 48... Kd6 {[%emt 0:00:50] CPLX 2.1=>BLUNDERREACT} 49. g4 {[%emt 0:00:57] CPLX 2.2 173 (Bd4-g7) (=32)} (49. Bg7 {was worth a try.} c3 50. Ke2) 49... Kd5 {[%emt 0:00:07] CPLX 2.3} 50. Be5 {[%emt 0:00:42] CPLX 2.6 0 (Bd4-g7) (=31)} Bd2 {[%emt 0:00:37] CPLX 2.5 21 (c4-c3) (=13)} 51. h3 {[%emt 0:00:47] CPLX 2.5 400 (g4xf5) (=40)} (51. gxf5 $142 exf5 52. Ke2) 51... c3 {[%emt 0:00:48] DEEPSTRONG=>BLUNDERREACT} 52. bxc3 {[%emt 0:02:30] BESTDEEP} Kc4 {[%emt 0:00:12] aiming for ...Kb3. CPLX 2.6} 53. g5 {[%emt 0:00:23] RELBLUND 400 (h3-h4) (=47)} Nxc3 {[%emt 0:01:00] DEEPSTRONG=>BLUNDERREACT} 54. Bxc3 {[%emt 0:00:43] MISSDEEP-h3-h4 400 (h3-h4) (=55)} Bxc3 {[%emt 0:00:08] RECAPT} 55. h4 {[%emt 0:00:06] RELBLUND 4 (Na2-c1) (=54)} Bb2 {[%emt 0:00:40] Weighted Error Value: White=0.61/Black=0.13 (very precise)} 0-1

[Event "Vienna Championship 2022"]
[Site "Vienna"]
[Date "2022.09.19"]
[Round "3.2"]
[White "Steindl, Johannes"]
[Black "Baumegger, Siegfried"]
[Result "1/2-1/2"]
[ECO "C10"]
[WhiteElo "2327"]
[BlackElo "2447"]
[Annotator "TA"]
[PlyCount "96"]
[EventDate "2022.09.17"]
[EventType "tourn"]
[EventCountry "AUT"]
[SourceTitle "playchess.com"]
[Source "ChessBase"]
[SourceQuality "1"]
[TimeControl "5400+30"]

{[%evp 11,96,24,25,34,27,34,28,32,26,10,33,0,-14,-8,-13,-8,-10,-9,-3,-3,-2,-7,-4,-6,0,-20,-18,-19,-19,-20,-22,-37,-32,-38,-20,-20,-21,-16,-15,-15,-16,-14,-13,-13,-5,-13,0,-13,-13,-13,-4,-8,-2,-7,-2,-3,0,-6,0,0,0,0,-4,-20,-20,-34,-20,-21,-21,-39,-20,-20,0,-20,0,-19,-8,-8,-8,-8,-8,-8,0,-18,0,-8,0]} 1. e4 {[%emt 0:06:59]} e6 {[%emt 0:00:34]} 2. d4 {[%emt 0:00:04]} d5 {[%emt 0:00:06]} 3. Nc3 {[%emt 0:00:03]} dxe4 {[%emt 0:00:19]} 4. Nxe4 {[%emt 0:00:05]} Nd7 {[%emt 0:00:08]} 5. Nf3 {[%emt 0:00:42]} Ngf6 {[%emt 0:00:06]} 6. Bd3 {[%emt 0:00:16]} c5 $1 {[%emt 0:01:12][%mdl 4] CPLX 2.2 1 (Nf6xe4) (=1) is now more promising than 6...Nxe4.} 7. c3 {[%emt 0:01:23] CPLX 2.6. C10: French with 3 Nc3: Unusual Black 3rd moves and 3...dxe4.} Nxe4 {[%emt 0:11:50] CPLX 2.5} 8. Bxe4 {[%emt 0:00:04] RECAPT} Nf6 {[%emt 0:02:21] CPLX 2.2} 9. Bg5 {[%emt 0:00:14] CPLX 2.6. White has an edge.} cxd4 {[%emt 0:04:33] BESTDEEP} 10. Nxd4 {[%emt 0:12:05] RECAPT 16 (Bg5xf6) (=4)} Bc5 {[%emt 0:13:41] [#] CPLX 3.1 23 (Bf8-e7) (=5)} (10... Be7 $5 {[%cal Rf6e4]} 11. Bxf6 Bxf6 $11) 11. Qf3 $146 {[%emt 0:05:50] CPLX 3.2 33 (0-0) (=10)} (11. O-O $14 {deserves consideration.}) ({Predecessor:} 11. Qd3 Bxd4 12. cxd4 Qa5+ 13. Bd2 Qb6 14. Bf3 O-O 15. O-O Bd7 16. Rfc1 Rac8 17. b3 {0-1 (33) Brunova,B (1992)-Frej,Z (1881) Prague 2016}) 11... Bxd4 $11 {[%emt 0:05:44] EASY} 12. cxd4 {[%emt 0:00:03] RECAPT} Qa5+ {[%emt 0:01:02] BESTDEEP} 13. Bd2 {[%emt 0:00:07] EASY} Qb6 {[%emt 0:03:11] CPLX 3.2} 14. Bc3 {[%emt 0:16:03] CPLX 2.5 0 (0-0) (=6)} Nxe4 {[%emt 0:04:24] CPLX 2.5 6 (0-0) (=3)} 15. Qxe4 {[%emt 0:00:04] RECAPT} O-O {[%emt 0:01:26] BESTDEEP} 16. O-O {[%emt 0:00:03] CPLX 2.2} Rd8 {[%emt 0:01:30] CPLX 2.3} 17. Rfe1 {[%emt 0:00:04][%cal Od4d5] CPLX 2.4} Qb5 {[%emt 0:07:44] Prevents d5. CPLX 2.5 6 (h7-h6) (=3)} 18. d5 {[%emt 0:11:35] CPLX 2.6 20 (Re1-e3) (=6)} Rxd5 {[%emt 0:05:22] CPLX 3.4} 19. Rad1 {[%emt 0:15:16] [#] Hoping for Rxd5. CPLX 3.3} Bd7 {[%emt 0:01:08][%cal Bc8d7,Bd7c6,Bc6d5][%mdl 32] BESTDEEP} 20. Rxd5 {[%emt 0:07:42] CPLX 3.4} Qxd5 {[%emt 0:00:08] RECAPT} 21. Qg4 {[%emt 0:00:06][%csl Gc3][%cal Rg4g7] CPLX 3.0 15 (Qe4xd5) (=6)} e5 $1 {[%emt 0:02:09] DEEPSTRONG} 22. Qd1 {[%emt 0:00:05] CPLX 3.0} Bc6 {[%emt 0:03:50][%csl Gc6][%cal Rd5g2] [#] CPLX 2.7 18 (Qd5xd1) (=3)} 23. Qxd5 {[%emt 0:00:30] EASY} Bxd5 {[%emt 0:00:05] RECAPT} 24. Rxe5 {[%emt 0:00:30] CPLX 2.0} Bxa2 {[%emt 0:00:19][%mdl 4096] Endgame KRB-KRB. EASY} 25. Rg5 {[%emt 0:04:21] CPLX 2.0} g6 {[%emt 0:00:06][%cal Bg7g6,Bg6g5][%mdl 32] BESTDEEP} 26. Rc5 {[%emt 0:00:18] BESTDEEP} b6 {[%emt 0:05:48] CPLX 2.0 1 (a7-a6) (=3)} 27. Rc7 {[%emt 0:00:18] CPLX 2.0} h6 {[%emt 0:11:44] CPLX 2.0 8 (g6-g5) (=3)} 28. f3 {[%emt 0:00:47] CPLX 2.0 8 (h2-h4) (=4)} Kh7 {[%emt 0:01:25] CPLX 2.0 13 (g6-g5) (=3)} 29. Kf2 {[%emt 0:01:12] CPLX 2.0 13 (h2-h4) (=5)} g5 {[%emt 0:01:14] CPLX 2.0 0 (Ba2-d5) (=3)} 30. g4 {[%emt 0:01:36] CPLX 2.0} b5 {[%emt 0:04:09] CPLX 2.0 9 (Ba2-e6) (=3)} 31. Rc5 {[%emt 0:02:55] CPLX 2.0 4 (Bc3-a5) (=4)} Bc4 {[%emt 0:00:48] CPLX 2.0} 32. h4 {[%emt 0:00:45] BESTDEEP} gxh4 {[%emt 0:00:46] EASY} 33. Rh5 {[%emt 0:00:26] CPLX 2.2} Re8 {[%emt 0:01:28] CPLX 2.2 3 (h4-h3) (=3)} 34. Rxh4 {[%emt 0:00:33] CPLX 2.3} Re2+ {[%emt 0:02:09] CPLX 2.0 6 (a7-a5) (=3)} 35. Kg3 {[%emt 0:00:03] CPLX 2.0} Kg6 {[%emt 0:02:00] CPLX 2.0 0 (a7-a5) (=3)} 36. Rh1 {[%emt 0:02:10] CPLX 2.1 0 (Rh4-h5) (=4)} a5 {[%emt 0:01:34] CPLX 2.1} 37. Bxa5 {[%emt 0:10:47] CPLX 2.2 16 (Rh1-h5) (=4)} Rxb2 {[%emt 0:00:09] CPLX 2.0} 38. Rh2 {[%emt 0:00:03] CPLX 2.0 14 (Rh1-h5) (=4)} Rb3 {[%emt 0:00:20] MISS-Rb2xh2 14 (Rb2xh2) (=3)} 39. Rd2 {[%emt 0:01:43] Inhibits Bd5. MISS-Ba5-d2 1 (Ba5-d2) (=4)} Bd3 {[%emt 0:00:31] CPLX 2.0 0 (Bc4-e6) (=3)} 40. Kh4 {[%emt 0:00:38] CPLX 2.0 18 (Kg3-f4) (=5)} f6 {[%emt 0:00:53] CPLX 2.0 19 (Kg6-f6) (=4)} 41. Bb6 {[%emt 0:01:18] CPLX 2.1. The position is equal.} Bc4 {[%emt 0:01:25] CPLX 2.0 20 (Bd3-f1) (=4)} 42. Kg3 {[%emt 0:00:58] CPLX 2.0 20 (f3-f4) (=5)} Bd3 {[%emt 0:00:13] CPLX 2.0 20 (Kg6-f7) (=5)} 43. Kf4 {[%emt 0:00:33] Inhibits Be4. CPLX 2.0 19 (Kg3-h4) (=5)} h5 {[%emt 0:00:54] CPLX 2.0 11 (b5-b4) (=5)} 44. gxh5+ {[%emt 0:00:19] CPLX 2.2} Kxh5 {[%emt 0:00:04] RECAPT} 45. Rg2 {[%emt 0:00:24] BESTDEEP} Rb4+ {[%emt 0:00:23] CPLX 2.0 0 (Rb3-c3) (=4)} 46. Ke3 {[%emt 0:00:03] EASY} Rb3 {[%emt 0:00:09] Threatens to win with ...Bf1+. CPLX 2.0 8 (Bd3-f1) (=5)} 47. Kf4 {[%emt 0:00:37] CPLX 2.0} Rb4+ {[%emt 0:01:14] CPLX 2.0 18 (Rb3-c3) (=5)} 48. Ke3 {[%emt 0:00:03] EASY} Rb3 {[%emt 0:01:09] Weighted Error Value: White=0.05 (flawless) /Black=0.05 (flawless)} 1/2-1/2

[Event "Vienna Championship 2022"]
[Site "Vienna"]
[Date "2022.09.19"]
[Round "3.3"]
[White "Atzl, Florian"]
[Black "Halvax, Georg"]
[Result "*"]
[ECO "B39"]
[WhiteElo "2155"]
[BlackElo "2423"]
[Annotator "TA"]
[PlyCount "67"]
[EventDate "2022.09.17"]
[EventType "tourn"]
[EventCountry "AUT"]
[SourceTitle "playchess.com"]
[Source "ChessBase"]
[SourceQuality "1"]
[TimeControl "5400+30"]

{[%evp 21,67,54,52,50,50,50,54,50,52,38,35,37,45,14,6,-6,-6,-6,-6,-14,-14,-18,-14,-14,-6,-7,0,-6,0,-4,-4,-4,-4,-4,-4,-4,-4,-4,-4,-4,0,-4,0,0,0,-2,40,40]} 1. e4 {[%emt 0:00:02]} c5 {[%emt 0:00:14]} 2. Nf3 {[%emt 0:00:25]} Nc6 {[%emt 0:00:16]} 3. d4 {[%emt 0:00:19]} cxd4 {[%emt 1:31:30]} 4. Nxd4 {[%emt 0:00:07]} g6 {[%emt 0:00:10]} 5. c4 {[%emt 0:00:52]} Bg7 {[%emt 1:32:06]} 6. Be3 {[%emt 0:00:41]} Nf6 {[%emt 0:00:08]} 7. Nc3 {[%emt 0:00:11]} Ng4 {[%emt 0:00:08]} 8. Qxg4 {[%emt 0:00:49]} Nxd4 {[%emt 0:00:10]} 9. Qd1 {[%emt 1:31:34]} e5 {[%emt 0:00:08]} 10. Bd3 {[%emt 0:04:18]} O-O {[%emt 0:00:16]} 11. O-O {[%emt 0:05:18]} b6 {[%emt 0:00:11]} 12. Bxd4 {[%emt 0:03:28] CPLX 2.2 2 (Nc3-d5) (=2). B39: Sicilian: Maroczy Bind with 5...Bg7 and 7...Ng4.} exd4 {[%emt 0:02:25] RECAPT} 13. Nd5 {[%emt 1:20:17] EASY} Bb7 {[%emt 0:02:07] [#] CPLX 2.3} 14. f4 $146 {[%emt 0:08:14] CPLX 2.4 4 (Qd1-d2) (=2)} ({Predecessor:} 14. Qf3 d6 15. Rac1 Re8 16. Qg3 Rc8 17. f4 Bxd5 18. cxd5 Qd7 19. Qf3 f5 20. exf5 {0-1 (31) Aakanksha,H (2238)-Wong,Y (2381) Chess.com INT 2020}) 14... d6 {[%emt 0:02:42] CPLX 2.4} 15. Qf3 {[%emt 0:06:44] CPLX 2.4 14 (Qd1-d2) (=5)} Rc8 {[%emt 0:05:23] CPLX 2.5} 16. Rae1 {[%emt 0:02:37] CPLX 2.5 0 (a2-a4) (=4)} Bxd5 {[%emt 0:04:46] CPLX 2.5 8 (Rf8-e8) (=1)} 17. exd5 {[%emt 0:01:46] CPLX 2.8 31 (c4xd5) (=9)} Re8 {[%emt 0:01:15] CPLX 2.0} 18. Re2 {[%emt 0:12:25] CPLX 2.2 12 (b2-b3) (=9)} Re3 {[%emt 0:03:39] CPLX 2.2} 19. Rxe3 {[%emt 0:04:57] EASY} dxe3 {[%emt 0:00:02] RECAPT} 20. Qxe3 {[%emt 0:02:21] CPLX 2.3 8 (f4-f5) (=8)} Bxb2 {[%emt 0:00:32] EASY} 21. f5 {[%emt 0:06:41] CPLX 2.0 4 (g2-g3) (=8)} Qh4 {[%emt 0:09:32] [#] ...Bd4 is the strong threat. CPLX 2.3 4 (Kg8-g7) (=1)} 22. Qf3 {[%emt 0:09:40] CPLX 2.8 0 (Kg1-h1) (=7)} Rc7 {[%emt 0:16:13] CPLX 3.5 8 (Bb2-d4) (=2)} 23. g3 {[%emt 0:03:37] CPLX 3.5} Qd4+ {[%emt 0:51:20] CPLX 3.3 7 (Qh4-f6) (=2)} 24. Kg2 {[%emt 0:01:21] CPLX 2.5} Kg7 {[%emt 0:02:25] CPLX 2.6 6 (Qd4-f6) (=2)} 25. h4 {[%emt 0:06:50] CPLX 2.8 4 (Qf3-e2) (=6)} Re7 {[%emt 0:04:39] BESTDEEP} 26. fxg6 {[%emt 0:02:14] CPLX 3.1} hxg6 {[%emt 0:00:08] RECAPT} 27. h5 {[%emt 0:01:48] [#] Black must now prevent hxg6. CPLX 3.9} Qe3 {[%emt 0:09:29] CPLX 4.3} 28. hxg6 {[%emt 0:00:24][%cal Of3h5] Strongly threatening Qh5! Really sharp! CPLX 5.2} Qxf3+ {[%emt 0:00:23] CPLX 5.8} 29. Rxf3 {[%emt 0:00:16] CPLX 3.9 0 (Kg2xf3) (=4)} fxg6 $11 {[%emt 0:00:05] KRB-KRB. CPLX 2.3} 30. Rf4 {[%emt 0:02:49] BESTDEEP} g5 {[%emt 0:06:52] CPLX 2.0 4 (Re7-e3) (=2)} 31. Re4 {[%emt 0:01:38] CPLX 2.0 4 (Rf4-f5) (=4)} Be5 {[%emt 0:01:29] CPLX 2.0 4 (Re7xe4) (=2)} 32. Bc2 {[%emt 0:00:18] CPLX 2.0 0 (Kg2-h3) (=4)} Rc7 {[%emt 0:02:04] CPLX 2.0 0 (a7-a6) (=2)} 33. Ba4 {[%emt 0:01:29] CPLX 2.0 2 (Bc2-b3) (=4)} Rc5 {[%emt 0:24:00] CPLX 2.0 42 (a7-a6) (=4)} 34. Bc6 {[%emt 0:00:21] Weighted Error Value: White=0.04 (flawless) /Black=0.04 (flawless)} *